[Event "*** Titled Tuesday Blitz"]
[Site "Chess.com"]
[Date "2018.04.03"]
[Round "2"]
[White "r31415"]
[Black "Chess_Lynx"]
[Result "1-0"]
[WhiteElo "2191"]
[BlackElo "2017"]
[TimeControl "180+2"]
[EndTime "13:24:48 PDT"]
[Termination "r31415 won on time"]

1. e4 {[%clk 0:03:01.7]} 1... e6 {[%clk 0:02:54]} 2. d4 {[%clk 0:03:01.9]} 2...
d5 {[%clk 0:02:54.4]} 3. Nc3 {[%clk 0:03:03.4]} 3... Nc6 {[%clk 0:02:54]} 4. e5
{[%clk 0:03:04.8]} 4... f6 {[%clk 0:02:52.6]} 5. f4 {[%clk 0:02:59.9]} 5... fxe5
{[%clk 0:02:52.6]} 6. fxe5 {[%clk 0:02:59.9]} 6... Qh4+ {[%clk 0:02:52.7]} 7. g3
{[%clk 0:02:49]} 7... Qxd4 {[%clk 0:02:52.6]} 8. Nf3 {[%clk 0:02:32.1]} 8...
Qxd1+ {[%clk 0:02:43.2]} 9. Kxd1 {[%clk 0:02:34]} 9... Bd7 {[%clk 0:02:37.2]}
10. Bh3 {[%clk 0:02:30.7]} 10... O-O-O {[%clk 0:02:36.3]} 11. Ng5 {[%clk
0:02:29.9]} 11... Nxe5 {[%clk 0:02:15.4]} 12. Bf4 {[%clk 0:02:18.1]} 12... Nc4
{[%clk 0:01:54.8]} 13. Nf7 {[%clk 0:01:54.3]} 13... e5 {[%clk 0:01:28.1]} 14.
Bg5 {[%clk 0:01:23.7]} 14... Nf6 {[%clk 0:01:01.4]} 15. Bxd7+ {[%clk 0:01:16]}
15... Kxd7 {[%clk 0:00:52.1]} 16. Nxh8 {[%clk 0:01:17.9]} 16... Ke6 {[%clk
0:00:40.6]} 17. b3 {[%clk 0:00:56]} 17... Nd6 {[%clk 0:00:27.4]} 18. Rf1 {[%clk
0:00:50.1]} 18... Be7 {[%clk 0:00:28]} 19. Ke2 {[%clk 0:00:27.3]} 19... Rxh8
{[%clk 0:00:27.3]} 20. Rad1 {[%clk 0:00:24]} 20... c6 {[%clk 0:00:26.7]} 21.
Bxf6 {[%clk 0:00:16.1]} 21... Bxf6 {[%clk 0:00:21.4]} 22. Kf2 {[%clk 0:00:17.6]}
22... e4 {[%clk 0:00:21.6]} 23. Ne2 {[%clk 0:00:19.1]} 23... Nf5 {[%clk
0:00:21.7]} 24. Nf4+ {[%clk 0:00:16.3]} 24... Ke7 {[%clk 0:00:20.3]} 25. Rfe1
{[%clk 0:00:16.6]} 25... Bd4+ {[%clk 0:00:19.9]} 26. Ke2 {[%clk 0:00:15.6]}
26... g5 {[%clk 0:00:19.7]} 27. Ng2 {[%clk 0:00:15.7]} 27... Rf8 {[%clk
0:00:19.9]} 28. Rf1 {[%clk 0:00:16.7]} 28... Rf6 {[%clk 0:00:19.5]} 29. g4
{[%clk 0:00:16.8]} 29... Nd6 {[%clk 0:00:10.3]} 30. Rxd4 {[%clk 0:00:16.9]}
30... Nb5 {[%clk 0:00:07.9]} 31. Rdd1 {[%clk 0:00:17.3]} 31... Nc3+ {[%clk
0:00:08.3]} 32. Ke3 {[%clk 0:00:09.6]} 32... Nxd1+ {[%clk 0:00:10.2]} 33. Rxd1
{[%clk 0:00:11.5]} 33... Rf3+ {[%clk 0:00:10.7]} 34. Ke2 {[%clk 0:00:12.2]}
34... Ke6 {[%clk 0:00:11.1]} 35. Rf1 {[%clk 0:00:11.1]} 35... Rh3 {[%clk
0:00:12.3]} 36. Rf2 {[%clk 0:00:09.1]} 36... Ke5 {[%clk 0:00:11.6]} 37. Ne3
{[%clk 0:00:08.6]} 37... d4 {[%clk 0:00:10.3]} 38. Rf5+ {[%clk 0:00:09.7]} 38...
Ke6 {[%clk 0:00:08.9]} 39. Nf1 {[%clk 0:00:11.6]} 39... d3+ {[%clk 0:00:08.5]}
40. cxd3 {[%clk 0:00:12.3]} 40... exd3+ {[%clk 0:00:10.3]} 41. Kd2 {[%clk
0:00:13.8]} 41... h6 {[%clk 0:00:10.3]} 42. Rf8 {[%clk 0:00:13.5]} 42... Kd5
{[%clk 0:00:08.4]} 43. Rd8+ {[%clk 0:00:14.1]} 43... Kc5 {[%clk 0:00:09.2]} 44.
Rxd3 {[%clk 0:00:14.6]} 44... Rh4 {[%clk 0:00:09.9]} 45. Rg3 {[%clk 0:00:14.3]}
45... Kb4 {[%clk 0:00:09.2]} 46. h3 {[%clk 0:00:15.2]} 46... h5 {[%clk
0:00:08.5]} 47. Ne3 {[%clk 0:00:14.3]} 47... hxg4 {[%clk 0:00:09.1]} 48. Rxg4+
{[%clk 0:00:14.9]} 48... Rxg4 {[%clk 0:00:06.2]} 49. hxg4 {[%clk 0:00:16.1]}
49... Ka3 {[%clk 0:00:07.4]} 50. Kc3 {[%clk 0:00:13.5]} 50... Kxa2 {[%clk
0:00:08]} 51. Nc4 {[%clk 0:00:12.3]} 51... b5 {[%clk 0:00:04.4]} 52. Ne5 {[%clk
0:00:13.2]} 52... c5 {[%clk 0:00:05.4]} 53. Nf7 {[%clk 0:00:13.4]} 53... a5
{[%clk 0:00:05.4]} 54. Nxg5 {[%clk 0:00:13.7]} 54... a4 {[%clk 0:00:05.3]} 55.
bxa4 {[%clk 0:00:10.5]} 55... bxa4 {[%clk 0:00:07.1]} 56. Ne4 {[%clk 0:00:11.7]}
56... a3 {[%clk 0:00:07.2]} 57. Nxc5 {[%clk 0:00:12.6]} 57... Kb1 {[%clk
0:00:07.3]} 58. Nb3 {[%clk 0:00:13.6]} 58... a2 {[%clk 0:00:07.3]} 59. g5 {[%clk
0:00:14.4]} 1-0

[Event "*** Titled Tuesday Blitz"]
[Site "Chess.com"]
[Date "2018.04.03"]
[Round "2"]
[White "BogdanDeac"]
[Black "ckgchess"]
[Result "1-0"]
[WhiteElo "2712"]
[BlackElo "2524"]
[TimeControl "180+2"]
[EndTime "13:24:54 PDT"]
[Termination "BogdanDeac won by resignation"]

1. d4 {[%clk 0:03:01.9]} 1... Nf6 {[%clk 0:02:55.3]} 2. Bg5 {[%clk 0:03:01.1]}
2... d5 {[%clk 0:02:55.5]} 3. Nd2 {[%clk 0:02:59.2]} 3... Bf5 {[%clk 0:02:44.5]}
4. e3 {[%clk 0:02:58.7]} 4... e6 {[%clk 0:02:44.7]} 5. Ngf3 {[%clk 0:02:59.5]}
5... Be7 {[%clk 0:02:40.3]} 6. c4 {[%clk 0:03:00.1]} 6... c6 {[%clk 0:02:37.9]}
7. Qb3 {[%clk 0:02:57.6]} 7... Qb6 {[%clk 0:02:33]} 8. c5 {[%clk 0:02:58.2]}
8... Qc7 {[%clk 0:02:26.4]} 9. Bf4 {[%clk 0:02:58.7]} 9... Qc8 {[%clk
0:02:27.3]} 10. Rc1 {[%clk 0:02:58.9]} 10... h6 {[%clk 0:02:23.8]} 11. h3 {[%clk
0:02:57.9]} 11... O-O {[%clk 0:02:24]} 12. Be2 {[%clk 0:02:58.6]} 12... Nbd7
{[%clk 0:02:24.3]} 13. Qa4 {[%clk 0:02:58]} 13... Ne4 {[%clk 0:02:22.9]} 14. O-O
{[%clk 0:02:56.2]} 14... Nxd2 {[%clk 0:02:22.9]} 15. Nxd2 {[%clk 0:02:56.6]}
15... Bf6 {[%clk 0:02:13.6]} 16. Bd6 {[%clk 0:02:51.4]} 16... Re8 {[%clk
0:02:13.3]} 17. f4 {[%clk 0:02:52.3]} 17... Be7 {[%clk 0:01:45.2]} 18. Bxe7
{[%clk 0:02:51.9]} 18... Rxe7 {[%clk 0:01:47.1]} 19. b4 {[%clk 0:02:52.6]} 19...
b5 {[%clk 0:01:35.9]} 20. Qa5 {[%clk 0:02:46.2]} 20... Qd8 {[%clk 0:01:28.1]}
21. Qxd8+ {[%clk 0:02:43.6]} 21... Rxd8 {[%clk 0:01:30]} 22. a4 {[%clk
0:02:44.4]} 22... bxa4 {[%clk 0:01:19.9]} 23. Ra1 {[%clk 0:02:44.2]} 23... Rb8
{[%clk 0:01:18]} 24. Rxa4 {[%clk 0:02:43.3]} 24... Nf6 {[%clk 0:01:19.1]} 25.
Nf3 {[%clk 0:02:11.3]} 25... Bc2 {[%clk 0:01:12.6]} 26. Ra6 {[%clk 0:02:07]}
26... Rxb4 {[%clk 0:00:36.1]} 27. Ne5 {[%clk 0:02:06.7]} 27... Rb3 {[%clk
0:00:30]} 28. Nxc6 {[%clk 0:02:06.7]} 28... Rc7 {[%clk 0:00:30.4]} 29. Rc1
{[%clk 0:01:51.4]} 29... Be4 {[%clk 0:00:20]} 30. Nxa7 {[%clk 0:01:50.2]} 30...
Rxe3 {[%clk 0:00:20.3]} 31. Kf2 {[%clk 0:01:48.5]} 31... Rb3 {[%clk 0:00:15.7]}
32. Nb5 {[%clk 0:01:46.7]} 32... Rc8 {[%clk 0:00:17.2]} 33. Nd6 {[%clk 0:01:33]}
33... Rc7 {[%clk 0:00:17.6]} 34. Rca1 {[%clk 0:01:32.4]} 34... Rb2 {[%clk
0:00:18]} 35. R1a2 {[%clk 0:01:30.8]} 35... Rxa2 {[%clk 0:00:14.6]} 36. Rxa2
{[%clk 0:01:29.5]} 36... Bb1 {[%clk 0:00:13.1]} 37. Ra8+ {[%clk 0:01:26.4]}
37... Kh7 {[%clk 0:00:13.6]} 38. Ke3 {[%clk 0:01:27.1]} 38... Ne4 {[%clk
0:00:14.5]} 39. Rb8 {[%clk 0:01:25.5]} 39... Bc2 {[%clk 0:00:06.2]} 40. Nb5
{[%clk 0:01:17.8]} 40... Rc6 {[%clk 0:00:05.1]} 41. Ra8 {[%clk 0:00:54.8]} 41...
Kg6 {[%clk 0:00:04.7]} 42. Ra3 {[%clk 0:00:43.1]} 42... Ng3 {[%clk 0:00:05.4]}
43. Bf3 {[%clk 0:00:36.6]} 43... Be4 {[%clk 0:00:04.3]} 44. Kf2 {[%clk
0:00:33.9]} 44... Nf5 {[%clk 0:00:04.9]} 45. g4 {[%clk 0:00:33.4]} 45... Ne7
{[%clk 0:00:05.8]} 46. Be2 {[%clk 0:00:29.4]} 46... Rc8 {[%clk 0:00:05.8]} 47.
Nd6 {[%clk 0:00:26.6]} 47... Rb8 {[%clk 0:00:06.9]} 48. Bb5 {[%clk 0:00:27]}
48... f5 {[%clk 0:00:04.9]} 49. Ke3 {[%clk 0:00:20.5]} 49... Kf6 {[%clk
0:00:05.6]} 50. Ra7 {[%clk 0:00:19.8]} 50... g5 {[%clk 0:00:06.4]} 51. Ne8+
{[%clk 0:00:15.9]} 51... Kf7 {[%clk 0:00:07.7]} 52. Nd6+ {[%clk 0:00:17]} 52...
Kf6 {[%clk 0:00:09.3]} 53. c6 {[%clk 0:00:18.3]} 53... gxf4+ {[%clk 0:00:08.3]}
54. Kxf4 {[%clk 0:00:18.8]} 54... Rxb5 {[%clk 0:00:08.7]} 55. Nxb5 {[%clk
0:00:17.1]} 55... Nxc6 {[%clk 0:00:10.1]} 56. Rc7 {[%clk 0:00:17.8]} 56... Nb4
{[%clk 0:00:11.2]} 57. Nd6 {[%clk 0:00:17.6]} 57... Nd3+ {[%clk 0:00:11.6]} 58.
Ke3 {[%clk 0:00:18.6]} 58... f4+ {[%clk 0:00:12.6]} 59. Kd2 {[%clk 0:00:19.8]}
59... Nf2 {[%clk 0:00:14.5]} 60. h4 {[%clk 0:00:17.5]} 60... Nxg4 {[%clk
0:00:15.1]} 61. Rf7+ {[%clk 0:00:18.6]} 61... Kg6 {[%clk 0:00:16.2]} 62. Rxf4
{[%clk 0:00:19.9]} 62... Nf6 {[%clk 0:00:16.7]} 63. Nxe4 {[%clk 0:00:19.1]}
63... Nxe4+ {[%clk 0:00:17.8]} 64. Ke3 {[%clk 0:00:20.3]} 64... Ng3 {[%clk
0:00:15.2]} 65. Rg4+ {[%clk 0:00:18.8]} 1-0

[Event "*** Titled Tuesday Blitz"]
[Site "Chess.com"]
[Date "2018.04.03"]
[Round "2"]
[White "SamCopeland"]
[Black "Triumphmate"]
[Result "1/2-1/2"]
[WhiteElo "2013"]
[BlackElo "2162"]
[TimeControl "180+2"]
[EndTime "13:24:57 PDT"]
[Termination "Game drawn by agreement"]

1. e4 {[%clk 0:03:01.9]} 1... e5 {[%clk 0:03:00.2]} 2. Nf3 {[%clk 0:03:01]} 2...
Nc6 {[%clk 0:03:01.3]} 3. Bc4 {[%clk 0:03:01.3]} 3... Nf6 {[%clk 0:03:01.8]} 4.
d4 {[%clk 0:02:58.5]} 4... exd4 {[%clk 0:03:02.6]} 5. O-O {[%clk 0:02:58.1]}
5... Nxe4 {[%clk 0:03:02.5]} 6. Re1 {[%clk 0:02:58.4]} 6... d5 {[%clk
0:03:03.3]} 7. Bxd5 {[%clk 0:02:58.4]} 7... Qxd5 {[%clk 0:03:04.9]} 8. Nc3
{[%clk 0:02:59.9]} 8... Qd7 {[%clk 0:03:03.8]} 9. Nxe4 {[%clk 0:02:59.6]} 9...
Be7 {[%clk 0:03:02.9]} 10. Bg5 {[%clk 0:02:09.3]} 10... O-O {[%clk 0:02:56.5]}
11. Bxe7 {[%clk 0:02:03.3]} 11... Nxe7 {[%clk 0:02:57.2]} 12. Qxd4 {[%clk
0:02:01]} 12... Nf5 {[%clk 0:02:45.3]} 13. Qxd7 {[%clk 0:01:37.1]} 13... Bxd7
{[%clk 0:02:47.2]} 14. Nc5 {[%clk 0:01:33.6]} 14... Bc6 {[%clk 0:02:41.6]} 15.
Ne5 {[%clk 0:01:32.2]} 15... Nd4 {[%clk 0:02:13.2]} 16. Nxc6 {[%clk 0:01:22.1]}
16... Nxc6 {[%clk 0:02:14.1]} 17. c3 {[%clk 0:01:04.1]} 17... b6 {[%clk
0:02:10.3]} 18. Ne4 {[%clk 0:00:51.5]} 18... Rad8 {[%clk 0:02:08.8]} 19. Rad1
{[%clk 0:00:51]} 19... Rfe8 {[%clk 0:02:08.8]} 20. Rxd8 {[%clk 0:00:50.1]} 20...
Rxd8 {[%clk 0:02:09.8]} 21. Kf1 {[%clk 0:00:50.2]} 21... f5 {[%clk 0:02:10.1]}
22. Ng3 {[%clk 0:00:48]} 22... g6 {[%clk 0:02:06.8]} 23. Ke2 {[%clk 0:00:45.4]}
23... Kg7 {[%clk 0:02:02.5]} 24. Rd1 {[%clk 0:00:44.7]} 24... Re8+ {[%clk
0:02:02.3]} 25. Kf1 {[%clk 0:00:44.2]} 25... Re7 {[%clk 0:02:03]} 26. Ne2 {[%clk
0:00:44]} 26... g5 {[%clk 0:01:57.2]} 27. Nd4 {[%clk 0:00:43.4]} 27... Nxd4
{[%clk 0:01:57.6]} 28. Rxd4 {[%clk 0:00:45.3]} 28... Kf6 {[%clk 0:01:58.4]} 29.
f4 {[%clk 0:00:36.3]} 29... h6 {[%clk 0:01:26]} 30. Kf2 {[%clk 0:00:36.7]} 30...
c5 {[%clk 0:01:26]} 31. Rd6+ {[%clk 0:00:34.8]} 31... Kg7 {[%clk 0:01:12.5]} 32.
fxg5 {[%clk 0:00:25.8]} 32... hxg5 {[%clk 0:01:13.1]} 33. g3 {[%clk 0:00:19.7]}
33... g4 {[%clk 0:01:11.4]} 34. a4 {[%clk 0:00:16.5]} 34... Kf7 {[%clk
0:01:08.7]} 35. a5 {[%clk 0:00:16.8]} 35... bxa5 {[%clk 0:01:08.2]} 36. Ra6
{[%clk 0:00:17]} 36... Rb7 {[%clk 0:01:08.9]} 37. Rxa5 {[%clk 0:00:09.9]} 37...
Rxb2+ {[%clk 0:01:09.5]} 38. Ke3 {[%clk 0:00:10.7]} 38... Rxh2 {[%clk
0:01:09.5]} 39. Rxc5 {[%clk 0:00:09.8]} 39... Kf6 {[%clk 0:01:09.4]} 40. Ra5
{[%clk 0:00:09.9]} 40... Rc2 {[%clk 0:01:07.3]} 41. Ra6+ {[%clk 0:00:09.8]}
41... Kg5 {[%clk 0:01:01.7]} 42. Rxa7 {[%clk 0:00:09.5]} 42... Rxc3+ {[%clk
0:01:02.6]} 43. Kf2 {[%clk 0:00:11]} 43... Rc2+ {[%clk 0:01:03.7]} 44. Kg1
{[%clk 0:00:09.8]} 44... Rb2 {[%clk 0:01:00.2]} 45. Ra6 {[%clk 0:00:10]} 45...
Rb4 {[%clk 0:00:58.3]} 46. Rc6 {[%clk 0:00:10.5]} 46... Rb2 {[%clk 0:00:56.8]}
47. Ra6 {[%clk 0:00:10.4]} 47... Rb5 {[%clk 0:00:57.9]} 48. Kg2 {[%clk
0:00:09.7]} 48... f4 {[%clk 0:00:57.9]} 49. gxf4+ {[%clk 0:00:09.3]} 49... Kxf4
{[%clk 0:00:59.8]} 50. Ra3 {[%clk 0:00:10.4]} 50... Rb2+ {[%clk 0:00:59.8]} 51.
Kg1 {[%clk 0:00:10.9]} 51... Kg5 {[%clk 0:00:59.9]} 52. Rc3 {[%clk 0:00:11.2]}
52... Kh4 {[%clk 0:01:01.1]} 53. Ra3 {[%clk 0:00:12]} 53... g3 {[%clk
0:01:02.2]} 54. Ra8 {[%clk 0:00:12.8]} 54... Rb1+ {[%clk 0:00:55]} 55. Kg2
{[%clk 0:00:12.8]} 55... Rb2+ {[%clk 0:00:56.4]} 56. Kg1 {[%clk 0:00:13.8]}
56... Kg4 {[%clk 0:00:45]} 57. Rg8+ {[%clk 0:00:14.1]} 57... Kf3 {[%clk
0:00:46.4]} 58. Rf8+ {[%clk 0:00:15.5]} 58... Ke2 {[%clk 0:00:46.8]} 59. Re8+
{[%clk 0:00:16.8]} 59... Kf3 {[%clk 0:00:45.4]} 60. Rf8+ {[%clk 0:00:17.7]}
60... Ke3 {[%clk 0:00:46.8]} 61. Re8+ {[%clk 0:00:17.4]} 61... Kd2 {[%clk
0:00:46.6]} 62. Kg2 {[%clk 0:00:17.4]} 62... Rb3 {[%clk 0:00:46.2]} 63. Rg8
{[%clk 0:00:17.7]} 63... Ke2 {[%clk 0:00:46.7]} 64. Rxg3 {[%clk 0:00:19.6]}
64... Rb4 {[%clk 0:00:42.1]} 65. Rg8 {[%clk 0:00:20.2]} 65... Re4 {[%clk
0:00:41.9]} 66. Rg7 {[%clk 0:00:21]} 66... Ke3 {[%clk 0:00:42.4]} 67. Rg3+
{[%clk 0:00:21.2]} 67... Kf4 {[%clk 0:00:42.6]} 68. Rg8 {[%clk 0:00:22.5]} 68...
Re2+ {[%clk 0:00:43.3]} 69. Kf1 {[%clk 0:00:23.4]} 69... Ra2 {[%clk 0:00:44.4]}
70. Rf8+ {[%clk 0:00:23.9]} 70... Ke3 {[%clk 0:00:45.4]} 71. Re8+ {[%clk
0:00:25.2]} 71... Kf3 {[%clk 0:00:46.9]} 72. Rf8+ {[%clk 0:00:26.1]} 72... Kg3
{[%clk 0:00:48.2]} 73. Rg8+ {[%clk 0:00:27.1]} 1/2-1/2

[Event "*** Titled Tuesday Blitz"]
[Site "Chess.com"]
[Date "2018.04.03"]
[Round "2"]
[White "Bauxi435"]
[Black "Zufi1811"]
[Result "0-1"]
[WhiteElo "2452"]
[BlackElo "2447"]
[TimeControl "180+2"]
[EndTime "13:24:58 PDT"]
[Termination "Zufi1811 won by checkmate"]

1. d4 {[%clk 0:03:01.9]} 1... Nf6 {[%clk 0:02:59.4]} 2. c4 {[%clk 0:03:03.4]}
2... g6 {[%clk 0:02:59.9]} 3. Nc3 {[%clk 0:03:04.8]} 3... Bg7 {[%clk 0:03:01.2]}
4. e4 {[%clk 0:03:05.8]} 4... d6 {[%clk 0:03:02.6]} 5. Be2 {[%clk 0:03:06.5]}
5... O-O {[%clk 0:03:03.7]} 6. Be3 {[%clk 0:03:07.1]} 6... e5 {[%clk 0:03:02]}
7. d5 {[%clk 0:03:08.2]} 7... a5 {[%clk 0:03:03.1]} 8. g4 {[%clk 0:03:07]} 8...
Na6 {[%clk 0:03:05]} 9. g5 {[%clk 0:03:08]} 9... Nd7 {[%clk 0:03:03.9]} 10. h4
{[%clk 0:03:09.4]} 10... Nb6 {[%clk 0:02:50.2]} 11. h5 {[%clk 0:03:08.5]} 11...
c6 {[%clk 0:02:50.8]} 12. dxc6 {[%clk 0:03:04.1]} 12... bxc6 {[%clk 0:02:51]}
13. Qd2 {[%clk 0:03:02.4]} 13... Be6 {[%clk 0:02:49.7]} 14. b3 {[%clk
0:02:51.3]} 14... a4 {[%clk 0:02:47.4]} 15. Bxb6 {[%clk 0:02:49.1]} 15... Qxb6
{[%clk 0:02:49.3]} 16. Nxa4 {[%clk 0:02:50.3]} 16... Qc7 {[%clk 0:02:45.8]} 17.
Nc3 {[%clk 0:02:48.5]} 17... Rfd8 {[%clk 0:02:42.2]} 18. hxg6 {[%clk 0:02:45.7]}
18... hxg6 {[%clk 0:02:40.2]} 19. Rd1 {[%clk 0:02:38.4]} 19... Nc5 {[%clk
0:02:36]} 20. Bf3 {[%clk 0:02:33.1]} 20... Bc8 {[%clk 0:02:26.2]} 21. Nge2
{[%clk 0:02:32.8]} 21... Ne6 {[%clk 0:02:26.6]} 22. Qe3 {[%clk 0:02:26.3]} 22...
Qe7 {[%clk 0:02:23.8]} 23. Rg1 {[%clk 0:02:21.9]} 23... Nd4 {[%clk 0:02:00]} 24.
Rd2 {[%clk 0:02:07.4]} 24... Qa7 {[%clk 0:01:46.9]} 25. Na4 {[%clk 0:02:01.7]}
25... Be6 {[%clk 0:01:41.4]} 26. Nxd4 {[%clk 0:01:43.3]} 26... exd4 {[%clk
0:01:41.6]} 27. Qd3 {[%clk 0:01:43.9]} 27... d5 {[%clk 0:01:23.3]} 28. exd5
{[%clk 0:01:42.7]} 28... cxd5 {[%clk 0:01:25.2]} 29. cxd5 {[%clk 0:01:39.7]}
29... Bxd5 {[%clk 0:01:20.3]} 30. Bxd5 {[%clk 0:01:34.8]} 30... Rxd5 {[%clk
0:01:22.2]} 31. Kf1 {[%clk 0:01:31.3]} 31... Rc8 {[%clk 0:01:11.4]} 32. Rg4
{[%clk 0:01:26.1]} 32... Qd7 {[%clk 0:01:07.6]} 33. Qf3 {[%clk 0:01:09.6]} 33...
Rf5 {[%clk 0:01:01.1]} 34. Qe2 {[%clk 0:01:01.4]} 34... Re8 {[%clk 0:00:53.9]}
35. Re4 {[%clk 0:00:53.9]} 35... Rxe4 {[%clk 0:00:50.5]} 36. Qxe4 {[%clk
0:00:55.7]} 36... Rxg5 {[%clk 0:00:51.9]} 37. Nc5 {[%clk 0:00:49.1]} 37... Qh3+
{[%clk 0:00:51.7]} 38. Ke2 {[%clk 0:00:47.5]} 38... Re5 {[%clk 0:00:52.5]} 39.
Rxd4 {[%clk 0:00:40.2]} 39... Rxe4+ {[%clk 0:00:46.1]} 40. Rxe4 {[%clk
0:00:42.1]} 40... Qc3 {[%clk 0:00:44.7]} 41. Nd3 {[%clk 0:00:35.6]} 41... Qc2+
{[%clk 0:00:42.4]} 42. Ke3 {[%clk 0:00:36.7]} 42... Qxa2 {[%clk 0:00:44]} 43. b4
{[%clk 0:00:37.3]} 43... Qd5 {[%clk 0:00:42.3]} 44. f3 {[%clk 0:00:37.1]} 44...
Bh6+ {[%clk 0:00:41.8]} 45. Ke2 {[%clk 0:00:37.7]} 45... Qa2+ {[%clk 0:00:41.9]}
46. Kf1 {[%clk 0:00:37.3]} 46... Qb1+ {[%clk 0:00:42.4]} 47. Ne1 {[%clk
0:00:36.2]} 47... Bd2 {[%clk 0:00:40.7]} 48. Kf2 {[%clk 0:00:34]} 48... Bxe1+
{[%clk 0:00:39.7]} 49. Rxe1 {[%clk 0:00:35.9]} 49... Qxb4 {[%clk 0:00:40.6]} 50.
Re4 {[%clk 0:00:36.7]} 50... Qd2+ {[%clk 0:00:41.1]} 51. Kg3 {[%clk 0:00:37.7]}
51... Kg7 {[%clk 0:00:41.2]} 52. Rg4 {[%clk 0:00:34]} 52... f5 {[%clk
0:00:41.2]} 53. Rh4 {[%clk 0:00:33.1]} 53... Qe1+ {[%clk 0:00:39.4]} 54. Kh3
{[%clk 0:00:33.7]} 54... Qf1+ {[%clk 0:00:34.6]} 55. Kg3 {[%clk 0:00:33.5]}
55... Qg1+ {[%clk 0:00:35.4]} 56. Kh3 {[%clk 0:00:34.3]} 56... g5 {[%clk
0:00:32.6]} 57. Ra4 {[%clk 0:00:31.2]} 57... Qh1+ {[%clk 0:00:28.3]} 58. Kg3
{[%clk 0:00:32.1]} 58... Qe1+ {[%clk 0:00:22.3]} 59. Kh3 {[%clk 0:00:33]} 59...
Qf1+ {[%clk 0:00:19.6]} 60. Kg3 {[%clk 0:00:33.5]} 60... f4+ {[%clk 0:00:19.7]}
61. Kg4 {[%clk 0:00:32.3]} 61... Qg2+ {[%clk 0:00:20.7]} 62. Kf5 {[%clk
0:00:30.3]} 62... Qc2+ {[%clk 0:00:19.3]} 63. Kxg5 {[%clk 0:00:29.6]} 63... Qxa4
{[%clk 0:00:17.6]} 64. Kf5 {[%clk 0:00:30.9]} 64... Qd4 {[%clk 0:00:17.9]} 65.
Kg4 {[%clk 0:00:31.5]} 65... Qe3 {[%clk 0:00:19.8]} 66. Kh4 {[%clk 0:00:31.7]}
66... Qxf3 {[%clk 0:00:20.2]} 67. Kg5 {[%clk 0:00:33.6]} 67... Qg3+ {[%clk
0:00:19.2]} 68. Kh5 {[%clk 0:00:34.7]} 68... Qg6+ {[%clk 0:00:19.5]} 69. Kh4
{[%clk 0:00:35.6]} 69... f3 {[%clk 0:00:20.9]} 70. Kh3 {[%clk 0:00:35.9]} 70...
f2 {[%clk 0:00:22.3]} 71. Kh2 {[%clk 0:00:37.8]} 71... Qg4 {[%clk 0:00:21.1]}
72. Kh1 {[%clk 0:00:36.3]} 72... f1=Q+ {[%clk 0:00:22.4]} 73. Kh2 {[%clk
0:00:38.2]} 73... Qfg2# {[%clk 0:00:23.3]} 0-1

[Event "*** Titled Tuesday Blitz"]
[Site "Chess.com"]
[Date "2018.04.03"]
[Round "2"]
[White "Vrolijk"]
[Black "Man-Chuk"]
[Result "0-1"]
[WhiteElo "2500"]
[BlackElo "2674"]
[TimeControl "180+2"]
[EndTime "13:25:02 PDT"]
[Termination "Man-Chuk won by resignation"]

1. d4 {[%clk 0:03:01.9]} 1... Nf6 {[%clk 0:02:59.2]} 2. c4 {[%clk 0:03:02.8]}
2... e6 {[%clk 0:02:57.1]} 3. Nf3 {[%clk 0:03:03.3]} 3... b6 {[%clk 0:02:55.9]}
4. g3 {[%clk 0:03:04]} 4... Bb7 {[%clk 0:02:54.6]} 5. Bg2 {[%clk 0:03:04]} 5...
Be7 {[%clk 0:02:53.7]} 6. O-O {[%clk 0:03:04.1]} 6... O-O {[%clk 0:02:52.8]} 7.
d5 {[%clk 0:03:05.1]} 7... exd5 {[%clk 0:02:50.6]} 8. Nh4 {[%clk 0:03:05.3]}
8... c6 {[%clk 0:02:50]} 9. cxd5 {[%clk 0:03:05.3]} 9... Nxd5 {[%clk 0:02:51.9]}
10. Nf5 {[%clk 0:03:06.4]} 10... Nc7 {[%clk 0:02:53.1]} 11. Nc3 {[%clk
0:03:06.9]} 11... d5 {[%clk 0:02:54.2]} 12. e4 {[%clk 0:03:08]} 12... Bf6 {[%clk
0:02:55.5]} 13. exd5 {[%clk 0:03:02.3]} 13... cxd5 {[%clk 0:02:49.6]} 14. Bf4
{[%clk 0:03:03.1]} 14... Nba6 {[%clk 0:02:40.5]} 15. Re1 {[%clk 0:03:03.3]}
15... Bc8 {[%clk 0:02:39.3]} 16. Nd6 {[%clk 0:03:03]} 16... Be6 {[%clk
0:02:37.9]} 17. Nxd5 {[%clk 0:03:02.9]} 17... Nxd5 {[%clk 0:02:37.4]} 18. Bxd5
{[%clk 0:03:04.8]} 18... Bxd5 {[%clk 0:02:39.2]} 19. Qxd5 {[%clk 0:03:06]} 19...
Nc5 {[%clk 0:02:35.7]} 20. Rad1 {[%clk 0:03:00.7]} 20... Bxb2 {[%clk 0:02:29.6]}
21. Re2 {[%clk 0:02:06.1]} 21... Bf6 {[%clk 0:01:59.7]} 22. Qf5 {[%clk
0:02:02.9]} 22... Qd7 {[%clk 0:01:27.7]} 23. Qxd7 {[%clk 0:01:54.9]} 23... Nxd7
{[%clk 0:01:29.6]} 24. Ne4 {[%clk 0:01:56.2]} 24... Nc5 {[%clk 0:01:28.2]} 25.
Nxc5 {[%clk 0:01:34.3]} 25... bxc5 {[%clk 0:01:27.4]} 26. Rc2 {[%clk 0:01:36.2]}
26... Bd4 {[%clk 0:01:12.1]} 27. Be3 {[%clk 0:01:36.6]} 27... Bxe3 {[%clk
0:00:57]} 28. fxe3 {[%clk 0:01:38.5]} 28... Rfe8 {[%clk 0:00:56.6]} 29. Rxc5
{[%clk 0:01:21.9]} 29... Rxe3 {[%clk 0:00:54.7]} 30. Rc7 {[%clk 0:01:23.8]}
30... a5 {[%clk 0:00:35.8]} 31. Ra7 {[%clk 0:01:22.2]} 31... Ree8 {[%clk
0:00:33.8]} 32. Rdd7 {[%clk 0:01:15.7]} 32... h6 {[%clk 0:00:19.4]} 33. Rxf7
{[%clk 0:01:12.3]} 33... Rxa7 {[%clk 0:00:18.7]} 34. Rxa7 {[%clk 0:01:14.2]}
34... Re5 {[%clk 0:00:19.8]} 35. Kf2 {[%clk 0:01:14]} 35... Rc5 {[%clk
0:00:20.6]} 36. Ke3 {[%clk 0:01:10.2]} 36... Rc3+ {[%clk 0:00:21.1]} 37. Kf4
{[%clk 0:01:08.8]} 37... Ra3 {[%clk 0:00:22.2]} 38. Kf5 {[%clk 0:01:09.5]} 38...
Kh7 {[%clk 0:00:23.5]} 39. h4 {[%clk 0:01:07.9]} 39... Rxa2 {[%clk 0:00:23.9]}
40. h5 {[%clk 0:01:09.1]} 40... a4 {[%clk 0:00:23.4]} 41. Kg4 {[%clk 0:01:09.5]}
41... a3 {[%clk 0:00:24.2]} 42. Ra8 {[%clk 0:01:11]} 42... Ra1 {[%clk
0:00:24.5]} 43. Kh3 {[%clk 0:01:08.8]} 43... g5 {[%clk 0:00:12.9]} 44. Ra7+
{[%clk 0:00:56.5]} 44... Kg8 {[%clk 0:00:13.8]} 45. Kg4 {[%clk 0:00:58.4]} 45...
a2 {[%clk 0:00:14.7]} 46. Ra6 {[%clk 0:00:59]} 46... Kf7 {[%clk 0:00:13.8]} 47.
Ra7+ {[%clk 0:00:58]} 47... Ke6 {[%clk 0:00:13.9]} 48. Ra6+ {[%clk 0:00:58.5]}
48... Ke5 {[%clk 0:00:15.1]} 49. Ra4 {[%clk 0:00:57.2]} 49... Kd5 {[%clk
0:00:14.9]} 50. Ra8 {[%clk 0:00:55.7]} 50... Ke5 {[%clk 0:00:15.7]} 51. Ra4
{[%clk 0:00:56.4]} 51... Ke6 {[%clk 0:00:16.8]} 52. Ra5 {[%clk 0:00:56.4]} 52...
Kd6 {[%clk 0:00:17.8]} 53. Ra8 {[%clk 0:00:57.2]} 53... Kd5 {[%clk 0:00:18.7]}
54. Rd8+ {[%clk 0:00:57.9]} 54... Ke4 {[%clk 0:00:19.8]} 55. Ra8 {[%clk
0:00:58.7]} 55... Ke3 {[%clk 0:00:20.9]} 56. Ra3+ {[%clk 0:00:58.7]} 56... Kf2
{[%clk 0:00:16.5]} 57. Kf5 {[%clk 0:00:56.7]} 57... Rb1 {[%clk 0:00:05.4]} 58.
Rxa2+ {[%clk 0:00:55.1]} 58... Kxg3 {[%clk 0:00:07.3]} 59. Ra6 {[%clk
0:00:48.6]} 59... Kh4 {[%clk 0:00:07.8]} 60. Kg6 {[%clk 0:00:22.6]} 60... g4
{[%clk 0:00:07.3]} 61. Kxh6 {[%clk 0:00:23.3]} 61... Rb5 {[%clk 0:00:08.4]} 62.
Ra1 {[%clk 0:00:19.8]} 62... Rxh5+ {[%clk 0:00:09.3]} 63. Kg6 {[%clk 0:00:21.7]}
63... Rb5 {[%clk 0:00:10.2]} 0-1